[Event "Titled Tuesday Blitz May 4 2021"]
[White "Bolanos, Fernando"]
[Black "Senthil Maran K"]
[WhiteFideId "3304094"]
[BlackFideId "25035681"]
[WhiteElo "1998"]
[BlackElo "2194"]
[Result "0-1"]
[Round "11"]
[TimeControl "180+1"]
[Date "2021.05.04"]
[WhiteClock "0:00:06"]
[BlackClock "0:00:16"]

1. e4 {[%clk 0:03:00]}  c5 {[%clk 0:03:00]} 2. Nf3 {[%clk 0:03:00]}  Nc6 {[%clk 0:03:00]} 3. d4 {[%clk 0:02:58]}  cxd4 {[%clk 0:03:01]} 4. Nxd4 {[%clk 0:02:59]}  g6 {[%clk 0:03:01]} 5. c3 {[%clk 0:02:48]}  Nf6 {[%clk 0:02:59]} 6. Bd3 {[%clk 0:02:47]}  Bg7 {[%clk 0:02:59]} 7. O-O {[%clk 0:02:45]}  O-O {[%clk 0:02:59]} 8. Bc2 {[%clk 0:02:42]}  d5 {[%clk 0:02:59]} 9. exd5 {[%clk 0:02:40]}  Nxd5 {[%clk 0:02:57]} 10. Nxc6 {[%clk 0:02:40]}  bxc6 {[%clk 0:02:58]} 11. Nd2 {[%clk 0:02:40]}  Rb8 {[%clk 0:02:51]} 12. Nb3 {[%clk 0:02:37]}  a5 {[%clk 0:02:48]} 13. Re1 {[%clk 0:02:35]}  a4 {[%clk 0:02:47]} 14. Nd4 {[%clk 0:02:32]}  a3 {[%clk 0:02:47]} 15. Bb3 {[%clk 0:02:13]}  Bd7 {[%clk 0:02:27]} 16. Qf3 {[%clk 0:01:50]}  e6 {[%clk 0:02:22]} 17. bxa3 {[%clk 0:01:48]}  c5 {[%clk 0:02:16]} 18. Ne2 {[%clk 0:01:42]}  Bc6 {[%clk 0:02:15]} 19. Qg3 {[%clk 0:01:33]}  Qf6 {[%clk 0:02:10]} 20. Bg5 {[%clk 0:01:31]}  Qf5 {[%clk 0:02:05]} 21. Rad1 {[%clk 0:01:06]}  Be5 {[%clk 0:01:55]} 22. f4 {[%clk 0:00:39]}  Bg7 {[%clk 0:01:55]} 23. c4 {[%clk 0:00:39]}  Nf6 {[%clk 0:01:49]} 24. Qe3 {[%clk 0:00:35]}  Ne4 {[%clk 0:01:47]} 25. Ng3 {[%clk 0:00:34]}  Nxg3 {[%clk 0:01:45]} 26. Qxg3 {[%clk 0:00:33]}  Rfe8 {[%clk 0:01:18]} 27. Qh4 {[%clk 0:00:24]}  e5 {[%clk 0:00:50]} 28. fxe5 {[%clk 0:00:17]}  Rxe5 {[%clk 0:00:49]} 29. Rxe5 {[%clk 0:00:14]}  Bxe5 {[%clk 0:00:50]} 30. Rf1 {[%clk 0:00:14]}  Qe6 {[%clk 0:00:44]} 31. Bf4 {[%clk 0:00:11]}  Bd4+ {[%clk 0:00:43]} 32. Kh1 {[%clk 0:00:11]}  Qe4 {[%clk 0:00:43]} 33. Qg3 {[%clk 0:00:11]}  Re8 {[%clk 0:00:42]} 34. a4 {[%clk 0:00:11]}  h5 {[%clk 0:00:31]} 35. h4 {[%clk 0:00:10]}  Qe2 {[%clk 0:00:28]} 36. Rd1 {[%clk 0:00:07]}  Re4 {[%clk 0:00:25]} 37. a5 {[%clk 0:00:06]}  Rxf4 {[%clk 0:00:25]} 38. a6 {[%clk 0:00:05]}  Rf1+ {[%clk 0:00:24]} 39. Rxf1 {[%clk 0:00:05]}  Qxf1+ {[%clk 0:00:25]} 40. Kh2 {[%clk 0:00:06]}  Qg1+ {[%clk 0:00:23]} 41. Kh3 {[%clk 0:00:06]}  Qh1+ {[%clk 0:00:18]} 42. Qh2 {[%clk 0:00:06]}  Bd7+ {[%clk 0:00:16]} 43. Kg3 {[%clk 0:00:06]}  Be5+ {[%clk 0:00:16]} 0-1


[Site "https://www.chess.com"]

[Event "Titled Tuesday Blitz May 4 2021"]
[White "Bon, Michael"]
[Black "Madaminov, Mukhiddin"]
[WhiteFideId "620696"]
[BlackFideId "14210703"]
[WhiteElo "2439"]
[BlackElo "1747"]
[Result "0-1"]
[Round "11"]
[TimeControl "180+1"]
[Date "2021.05.04"]
[WhiteClock "0:00:01"]
[BlackClock "0:00:02"]

1. e4 {[%clk 0:03:00]}  e6 {[%clk 0:02:56]} 2. d4 {[%clk 0:02:59]}  d5 {[%clk 0:02:56]} 3. exd5 {[%clk 0:02:58]}  exd5 {[%clk 0:02:55]} 4. Nf3 {[%clk 0:02:58]}  Nc6 {[%clk 0:02:55]} 5. Bb5 {[%clk 0:02:53]}  Bd6 {[%clk 0:02:52]} 6. c4 {[%clk 0:02:49]}  a6 {[%clk 0:02:38]} 7. Ba4 {[%clk 0:02:47]}  Nf6 {[%clk 0:02:28]} 8. c5 {[%clk 0:02:37]}  Be7 {[%clk 0:02:24]} 9. Ne5 {[%clk 0:02:37]}  Bd7 {[%clk 0:02:18]} 10. Bxc6 {[%clk 0:02:32]}  Bxc6 {[%clk 0:02:17]} 11. O-O {[%clk 0:02:27]}  O-O {[%clk 0:02:16]} 12. Nc3 {[%clk 0:02:26]}  Re8 {[%clk 0:02:11]} 13. Re1 {[%clk 0:02:25]}  Nd7 {[%clk 0:02:05]} 14. Bf4 {[%clk 0:01:38]}  Nxe5 {[%clk 0:02:02]} 15. Bxe5 {[%clk 0:01:37]}  Qd7 {[%clk 0:02:00]} 16. Qh5 {[%clk 0:01:31]}  f6 {[%clk 0:01:59]} 17. Bf4 {[%clk 0:01:29]}  Bf8 {[%clk 0:01:58]} 18. b3 {[%clk 0:01:10]}  g6 {[%clk 0:01:54]} 19. Qf3 {[%clk 0:01:05]}  a5 {[%clk 0:01:30]} 20. Qg3 {[%clk 0:01:03]}  b6 {[%clk 0:01:19]} 21. cxb6 {[%clk 0:00:28]}  cxb6 {[%clk 0:01:16]} 22. h4 {[%clk 0:00:27]}  Rxe1+ {[%clk 0:01:08]} 23. Rxe1 {[%clk 0:00:26]}  Re8 {[%clk 0:01:09]} 24. Re3 {[%clk 0:00:20]}  Rxe3 {[%clk 0:01:06]} 25. Qxe3 {[%clk 0:00:21]}  Kf7 {[%clk 0:01:01]} 26. f3 {[%clk 0:00:18]}  b5 {[%clk 0:00:54]} 27. Kf2 {[%clk 0:00:16]}  b4 {[%clk 0:00:51]} 28. Nd1 {[%clk 0:00:16]}  Qf5 {[%clk 0:00:50]} 29. Qd2 {[%clk 0:00:14]}  Bb5 {[%clk 0:00:47]} 30. g4 {[%clk 0:00:13]}  Qb1 {[%clk 0:00:44]} 31. Ne3 {[%clk 0:00:10]}  Ke6 {[%clk 0:00:30]} 32. h5 {[%clk 0:00:10]}  a4 {[%clk 0:00:22]} 33. hxg6 {[%clk 0:00:10]}  hxg6 {[%clk 0:00:19]} 34. bxa4 {[%clk 0:00:10]}  Bxa4 {[%clk 0:00:20]} 35. g5 {[%clk 0:00:10]}  fxg5 {[%clk 0:00:19]} 36. Bxg5 {[%clk 0:00:09]}  Bb5 {[%clk 0:00:19]} 37. Nd1 {[%clk 0:00:08]}  Qf5 {[%clk 0:00:16]} 38. Qe3+ {[%clk 0:00:07]}  Kf7 {[%clk 0:00:16]} 39. Kg3 {[%clk 0:00:04]}  Bc4 {[%clk 0:00:15]} 40. Nf2 {[%clk 0:00:04]}  Bd6+ {[%clk 0:00:13]} 41. Kh4 {[%clk 0:00:03]}  Bxa2 {[%clk 0:00:04]} 42. Ng4 {[%clk 0:00:02]}  Bf8 {[%clk 0:00:02]} 43. Ne5+ {[%clk 0:00:02]}  Kg8 {[%clk 0:00:03]} 44. Ng4 {[%clk 0:00:01]}  Bc4 {[%clk 0:00:02]} 0-1


[Site "https://www.chess.com"]

[Event "Titled Tuesday Blitz May 4 2021"]
[White "Bongo Akanga Ndjila, Barthelemy"]
[Black "Cella, Glaucio Dalla Cortt"]
[WhiteFideId "10609431"]
[BlackFideId "2119455"]
[WhiteElo "1803"]
[BlackElo "2011"]
[Result "1-0"]
[Round "11"]
[TimeControl "180+1"]
[Date "2021.05.04"]
[WhiteClock "0:01:05"]
[BlackClock "0:00:06"]

1. e4 {[%clk 0:03:00]}  c5 {[%clk 0:02:57]} 2. c3 {[%clk 0:03:00]}  Nf6 {[%clk 0:02:50]} 3. e5 {[%clk 0:03:00]}  Nd5 {[%clk 0:02:51]} 4. d4 {[%clk 0:03:00]}  d6 {[%clk 0:02:51]} 5. Bc4 {[%clk 0:02:59]}  Nb6 {[%clk 0:02:51]} 6. Bb5+ {[%clk 0:02:57]}  Bd7 {[%clk 0:02:47]} 7. Bd3 {[%clk 0:02:53]}  Nc6 {[%clk 0:02:41]} 8. exd6 {[%clk 0:02:44]}  exd6 {[%clk 0:02:39]} 9. Nf3 {[%clk 0:02:44]}  Be7 {[%clk 0:02:30]} 10. O-O {[%clk 0:02:43]}  h6 {[%clk 0:02:27]} 11. Re1 {[%clk 0:02:43]}  O-O {[%clk 0:02:27]} 12. a4 {[%clk 0:02:42]}  Bf6 {[%clk 0:02:24]} 13. a5 {[%clk 0:02:40]}  Nc8 {[%clk 0:02:00]} 14. a6 {[%clk 0:02:37]}  cxd4 {[%clk 0:01:53]} 15. axb7 {[%clk 0:02:35]}  Rb8 {[%clk 0:01:31]} 16. bxc8=Q {[%clk 0:02:33]}  Rxc8 {[%clk 0:01:32]} 17. cxd4 {[%clk 0:02:32]}  Nxd4 {[%clk 0:01:28]} 18. Nc3 {[%clk 0:02:24]}  Bg4 {[%clk 0:01:20]} 19. h3 {[%clk 0:01:51]}  Nxf3+ {[%clk 0:01:15]} 20. gxf3 {[%clk 0:01:51]}  Bxh3 {[%clk 0:01:16]} 21. Bc2 {[%clk 0:01:48]}  Bg5 {[%clk 0:00:15]} 22. Qd3 {[%clk 0:01:43]}  g6 {[%clk 0:00:13]} 23. f4 {[%clk 0:01:38]}  Bf5 {[%clk 0:00:12]} 24. Qd2 {[%clk 0:01:32]}  Bxf4 {[%clk 0:00:10]} 25. Qxf4 {[%clk 0:01:28]}  Bxc2 {[%clk 0:00:09]} 26. Qxh6 {[%clk 0:01:27]}  Qf6 {[%clk 0:00:08]} 27. Bg5 {[%clk 0:01:23]}  Qf5 {[%clk 0:00:08]} 28. Re3 {[%clk 0:01:19]}  Rc4 {[%clk 0:00:07]} 29. Rh3 {[%clk 0:01:13]}  Rg4+ {[%clk 0:00:06]} 30. Kh1 {[%clk 0:01:05]} 1-0


[Site "https://www.chess.com"]

[Event "Titled Tuesday Blitz May 4 2021"]
[White "Bonte, Andrei-Mihai"]
[Black "Matthiesen, Martin"]
[WhiteFideId "1210297"]
[BlackFideId "1404067"]
[WhiteElo "2200"]
[BlackElo "2337"]
[Result "0-1"]
[Round "11"]
[TimeControl "180+1"]
[Date "2021.05.04"]
[WhiteClock "0:00:11"]
[BlackClock "0:00:20"]

1. d4 {[%clk 0:02:35]}  Nf6 {[%clk 0:02:59]} 2. c4 {[%clk 0:02:34]}  e6 {[%clk 0:02:59]} 3. Nc3 {[%clk 0:02:31]}  Bb4 {[%clk 0:02:58]} 4. e3 {[%clk 0:02:31]}  O-O {[%clk 0:02:57]} 5. Ne2 {[%clk 0:02:30]}  d5 {[%clk 0:02:57]} 6. a3 {[%clk 0:02:30]}  Bd6 {[%clk 0:02:57]} 7. cxd5 {[%clk 0:02:25]}  exd5 {[%clk 0:02:56]} 8. Ng3 {[%clk 0:02:26]}  c6 {[%clk 0:02:51]} 9. Bd3 {[%clk 0:02:24]}  Na6 {[%clk 0:02:48]} 10. Bxa6 {[%clk 0:02:21]}  bxa6 {[%clk 0:02:48]} 11. O-O {[%clk 0:02:21]}  a5 {[%clk 0:02:44]} 12. b3 {[%clk 0:02:20]}  Rb8 {[%clk 0:02:42]} 13. Rb1 {[%clk 0:02:20]}  Re8 {[%clk 0:02:40]} 14. Qc2 {[%clk 0:02:19]}  g6 {[%clk 0:02:38]} 15. Nce2 {[%clk 0:01:47]}  h5 {[%clk 0:02:35]} 16. Qxc6 {[%clk 0:01:45]}  h4 {[%clk 0:02:33]} 17. Nh1 {[%clk 0:01:45]}  Rb6 {[%clk 0:01:42]} 18. Qc3 {[%clk 0:01:27]}  Bf5 {[%clk 0:01:40]} 19. Ra1 {[%clk 0:01:23]}  Qb8 {[%clk 0:01:31]} 20. f3 {[%clk 0:01:06]}  Bxh2+ {[%clk 0:01:29]} 21. Kf2 {[%clk 0:01:04]}  Rxb3 {[%clk 0:01:27]} 22. Qxa5 {[%clk 0:01:04]}  Rc8 {[%clk 0:01:09]} 23. Bd2 {[%clk 0:01:03]}  Rc2 {[%clk 0:01:08]} 24. Rfc1 {[%clk 0:01:01]}  Rb5 {[%clk 0:00:51]} 25. Rab1 {[%clk 0:00:15]}  Bg3+ {[%clk 0:00:29]} 26. Nhxg3 {[%clk 0:00:14]}  hxg3+ {[%clk 0:00:29]} 27. Nxg3 {[%clk 0:00:14]}  Rxd2+ {[%clk 0:00:23]} 28. Qxd2 {[%clk 0:00:12]}  Bxb1 {[%clk 0:00:23]} 29. Qc3 {[%clk 0:00:09]}  Rb2+ {[%clk 0:00:21]} 30. Kg1 {[%clk 0:00:10]}  Kg7 {[%clk 0:00:20]} 31. f4 {[%clk 0:00:10]}  Ne4 {[%clk 0:00:19]} 32. Nxe4 {[%clk 0:00:10]}  Bxe4 {[%clk 0:00:19]} 33. Rc2 {[%clk 0:00:10]}  Rxc2 {[%clk 0:00:19]} 34. Qxc2 {[%clk 0:00:09]}  Bxc2 {[%clk 0:00:19]} 35. Kh2 {[%clk 0:00:10]}  Be4 {[%clk 0:00:19]} 36. Kg3 {[%clk 0:00:11]}  Qb2 {[%clk 0:00:19]} 37. Kh2 {[%clk 0:00:11]}  Qxg2# {[%clk 0:00:20]} 0-1


[Site "https://www.chess.com"]

[Event "Titled Tuesday Blitz May 4 2021"]
[White "Buksa, Nataliya"]
[Black "Pein, Jonathan"]
[WhiteFideId "14123622"]
[BlackFideId "417092"]
[WhiteElo "2214"]
[BlackElo "2167"]
[Result "0-1"]
[Round "11"]
[TimeControl "180+1"]
[Date "2021.05.04"]
[WhiteClock "0:00:06"]
[BlackClock "0:00:01"]

1. d4 {[%clk 0:03:00]}  d5 {[%clk 0:02:52]} 2. Nc3 {[%clk 0:03:00]}  e6 {[%clk 0:02:41]} 3. Bf4 {[%clk 0:03:00]}  c6 {[%clk 0:02:41]} 4. e3 {[%clk 0:03:00]}  f5 {[%clk 0:02:41]} 5. g4 {[%clk 0:02:58]}  fxg4 {[%clk 0:02:39]} 6. Qxg4 {[%clk 0:02:52]}  Nf6 {[%clk 0:02:39]} 7. Qd1 {[%clk 0:02:51]}  Bb4 {[%clk 0:02:38]} 8. Bd3 {[%clk 0:02:51]}  Qa5 {[%clk 0:02:37]} 9. Ne2 {[%clk 0:02:51]}  Nbd7 {[%clk 0:02:37]} 10. Rg1 {[%clk 0:02:49]}  g6 {[%clk 0:02:34]} 11. a3 {[%clk 0:02:50]}  Be7 {[%clk 0:02:33]} 12. Nc1 {[%clk 0:02:35]}  Nh5 {[%clk 0:02:29]} 13. Bh6 {[%clk 0:02:31]}  e5 {[%clk 0:02:24]} 14. Be2 {[%clk 0:02:20]}  exd4 {[%clk 0:02:13]} 15. exd4 {[%clk 0:02:20]}  Ndf6 {[%clk 0:02:09]} 16. Nd3 {[%clk 0:02:17]}  Be6 {[%clk 0:01:57]} 17. Qd2 {[%clk 0:02:16]}  O-O-O {[%clk 0:01:52]} 18. O-O-O {[%clk 0:02:16]}  Rhe8 {[%clk 0:01:52]} 19. Kb1 {[%clk 0:02:15]}  Bd6 {[%clk 0:01:44]} 20. Ne5 {[%clk 0:02:15]}  c5 {[%clk 0:01:33]} 21. Bg5 {[%clk 0:02:09]}  cxd4 {[%clk 0:01:13]} 22. Qxd4 {[%clk 0:02:09]}  Qc7 {[%clk 0:01:06]} 23. f4 {[%clk 0:02:01]}  Bc5 {[%clk 0:00:52]} 24. Qa4 {[%clk 0:02:01]}  Bxg1 {[%clk 0:00:47]} 25. Rxg1 {[%clk 0:02:02]}  Qb6 {[%clk 0:00:25]} 26. Rd1 {[%clk 0:02:01]}  Bd7 {[%clk 0:00:25]} 27. Qd4 {[%clk 0:01:54]}  Qxd4 {[%clk 0:00:24]} 28. Rxd4 {[%clk 0:01:55]}  Rf8 {[%clk 0:00:18]} 29. Bxh5 {[%clk 0:01:50]}  gxh5 {[%clk 0:00:19]} 30. Bxf6 {[%clk 0:01:43]}  Rxf6 {[%clk 0:00:20]} 31. Nxd5 {[%clk 0:01:44]}  Re6 {[%clk 0:00:14]} 32. Ne3 {[%clk 0:01:22]}  Bc6 {[%clk 0:00:12]} 33. Rc4 {[%clk 0:01:22]}  Kc7 {[%clk 0:00:09]} 34. b4 {[%clk 0:01:20]}  a6 {[%clk 0:00:07]} 35. Kb2 {[%clk 0:01:15]}  Rf6 {[%clk 0:00:05]} 36. a4 {[%clk 0:01:08]}  Kb6 {[%clk 0:00:04]} 37. Ka3 {[%clk 0:00:33]}  Rdf8 {[%clk 0:00:04]} 38. Nd3 {[%clk 0:00:31]}  Re8 {[%clk 0:00:04]} 39. Ne5 {[%clk 0:00:28]}  Ref8 {[%clk 0:00:04]} 40. a5+ {[%clk 0:00:17]}  Ka7 {[%clk 0:00:04]} 41. Nd3 {[%clk 0:00:15]}  Bb5 {[%clk 0:00:04]} 42. Rc7 {[%clk 0:00:11]}  Bxd3 {[%clk 0:00:04]} 43. cxd3 {[%clk 0:00:12]}  R8f7 {[%clk 0:00:04]} 44. Rc5 {[%clk 0:00:11]}  Rxf4 {[%clk 0:00:04]} 45. Rxh5 {[%clk 0:00:11]}  Rf3 {[%clk 0:00:04]} 46. Re5 {[%clk 0:00:11]}  Rd7 {[%clk 0:00:04]} 47. Ka4 {[%clk 0:00:08]}  Rxd3 {[%clk 0:00:04]} 48. Nc4 {[%clk 0:00:08]}  Rf1 {[%clk 0:00:01]} 49. b5 {[%clk 0:00:06]}  Ra1+ {[%clk 0:00:01]} 50. Kb4 {[%clk 0:00:06]}  Rb1+ {[%clk 0:00:01]} 51. Kc5 {[%clk 0:00:06]}  Rxb5# {[%clk 0:00:01]} 0-1


[Site "https://www.chess.com"]

[Event "Titled Tuesday Blitz May 4 2021"]
[White "Buscar, Michael"]
[Black "Arkell, Keith C"]
[WhiteFideId "2603616"]
[BlackFideId "400270"]
[WhiteElo "2010"]
[BlackElo "2398"]
[Result "0-1"]
[Round "11"]
[TimeControl "180+1"]
[Date "2021.05.04"]
[WhiteClock "0:00:04"]
[BlackClock "0:01:18"]

1. d4 {[%clk 0:03:00]}  e6 {[%clk 0:02:59]} 2. c4 {[%clk 0:03:01]}  Bb4+ {[%clk 0:02:59]} 3. Nc3 {[%clk 0:02:59]}  c5 {[%clk 0:02:58]} 4. e3 {[%clk 0:02:59]}  Bxc3+ {[%clk 0:02:58]} 5. bxc3 {[%clk 0:02:59]}  f5 {[%clk 0:02:59]} 6. Bd3 {[%clk 0:02:58]}  Nf6 {[%clk 0:02:59]} 7. Ne2 {[%clk 0:02:58]}  d6 {[%clk 0:02:59]} 8. O-O {[%clk 0:02:58]}  Nc6 {[%clk 0:03:00]} 9. f3 {[%clk 0:02:58]}  e5 {[%clk 0:03:00]} 10. e4 {[%clk 0:02:58]}  f4 {[%clk 0:02:59]} 11. g3 {[%clk 0:02:42]}  g5 {[%clk 0:02:59]} 12. h4 {[%clk 0:02:38]}  h6 {[%clk 0:02:58]} 13. g4 {[%clk 0:02:30]}  gxh4 {[%clk 0:02:48]} 14. Qe1 {[%clk 0:02:28]}  h5 {[%clk 0:02:42]} 15. Qxh4 {[%clk 0:02:26]}  Kd7 {[%clk 0:02:34]} 16. g5 {[%clk 0:01:33]}  Nh7 {[%clk 0:02:32]} 17. Kf2 {[%clk 0:01:33]}  Qxg5 {[%clk 0:02:30]} 18. Rh1 {[%clk 0:01:30]}  Qxh4+ {[%clk 0:02:27]} 19. Rxh4 {[%clk 0:01:29]}  Nf6 {[%clk 0:02:23]} 20. Ba3 {[%clk 0:01:30]}  b6 {[%clk 0:02:23]} 21. Rah1 {[%clk 0:01:29]}  Ke7 {[%clk 0:02:21]} 22. Bc2 {[%clk 0:01:24]}  Kf7 {[%clk 0:02:20]} 23. Ba4 {[%clk 0:01:24]}  Ne7 {[%clk 0:02:20]} 24. Nc1 {[%clk 0:01:13]}  Ng6 {[%clk 0:02:20]} 25. R4h2 {[%clk 0:01:11]}  Be6 {[%clk 0:02:20]} 26. Bc6 {[%clk 0:01:09]}  Rac8 {[%clk 0:02:12]} 27. Bd5 {[%clk 0:01:09]}  Bxd5 {[%clk 0:02:10]} 28. cxd5 {[%clk 0:01:09]}  Nd7 {[%clk 0:02:01]} 29. Nd3 {[%clk 0:01:00]}  h4 {[%clk 0:02:00]} 30. Rg2 {[%clk 0:00:55]}  cxd4 {[%clk 0:01:54]} 31. cxd4 {[%clk 0:00:50]}  Rc3 {[%clk 0:01:53]} 32. dxe5 {[%clk 0:00:39]}  Rxa3 {[%clk 0:01:43]} 33. e6+ {[%clk 0:00:36]}  Kf6 {[%clk 0:01:38]} 34. Rxg6+ {[%clk 0:00:18]}  Kxg6 {[%clk 0:01:39]} 35. Nxf4+ {[%clk 0:00:18]}  Kg5 {[%clk 0:01:37]} 36. Nh3+ {[%clk 0:00:16]}  Kf6 {[%clk 0:01:37]} 37. exd7 {[%clk 0:00:17]}  Rd8 {[%clk 0:01:30]} 38. Nf4 {[%clk 0:00:15]}  Rxd7 {[%clk 0:01:27]} 39. Rxh4 {[%clk 0:00:16]}  Ke5 {[%clk 0:01:28]} 40. Ne6 {[%clk 0:00:15]}  Rxa2+ {[%clk 0:01:25]} 41. Ke3 {[%clk 0:00:14]}  Ra3+ {[%clk 0:01:25]} 42. Ke2 {[%clk 0:00:14]}  Rf7 {[%clk 0:01:19]} 43. Rh5+ {[%clk 0:00:04]}  Kf6 {[%clk 0:01:18]} 0-1


[Site "https://www.chess.com"]

[Event "Titled Tuesday Blitz May 4 2021"]
[White "Callejas Rojas, Francisco Miguel"]
[Black "Dogan, Mire Deniz"]
[WhiteFideId "32072503"]
[BlackFideId "6317456"]
[WhiteElo "2293"]
[BlackElo "1850"]
[Result "1-0"]
[Round "11"]
[TimeControl "180+1"]
[Date "2021.05.04"]
[WhiteClock "0:00:03"]
[BlackClock "0:00:08"]

1. d4 {[%clk 0:03:00]}  d5 {[%clk 0:02:25]} 2. c4 {[%clk 0:03:00]}  e6 {[%clk 0:02:23]} 3. Nc3 {[%clk 0:03:00]}  Nf6 {[%clk 0:02:23]} 4. cxd5 {[%clk 0:03:01]}  exd5 {[%clk 0:02:23]} 5. Bg5 {[%clk 0:03:00]}  Be7 {[%clk 0:02:24]} 6. e3 {[%clk 0:03:00]}  O-O {[%clk 0:02:24]} 7. Bd3 {[%clk 0:03:01]}  Nbd7 {[%clk 0:02:25]} 8. Qc2 {[%clk 0:03:00]}  Re8 {[%clk 0:02:25]} 9. Nf3 {[%clk 0:02:59]}  Nf8 {[%clk 0:02:25]} 10. O-O {[%clk 0:02:47]}  g6 {[%clk 0:02:23]} 11. Rab1 {[%clk 0:02:24]}  Ne6 {[%clk 0:02:17]} 12. Bh4 {[%clk 0:02:22]}  Ng7 {[%clk 0:02:16]} 13. b4 {[%clk 0:02:22]}  Bf5 {[%clk 0:02:12]} 14. b5 {[%clk 0:02:23]}  h6 {[%clk 0:01:33]} 15. Rfc1 {[%clk 0:02:07]}  Bxd3 {[%clk 0:01:32]} 16. Qxd3 {[%clk 0:02:08]}  Ne4 {[%clk 0:01:29]} 17. Bxe7 {[%clk 0:02:04]}  Rxe7 {[%clk 0:01:29]} 18. Ne5 {[%clk 0:01:54]}  Qd6 {[%clk 0:01:24]} 19. Nxe4 {[%clk 0:01:37]}  dxe4 {[%clk 0:01:23]} 20. Qxe4 {[%clk 0:01:38]}  c5 {[%clk 0:01:00]} 21. bxc6 {[%clk 0:01:13]}  bxc6 {[%clk 0:00:54]} 22. Qxc6 {[%clk 0:01:09]}  Qd8 {[%clk 0:00:44]} 23. Qf6 {[%clk 0:01:02]}  Qe8 {[%clk 0:00:37]} 24. Qc6 {[%clk 0:00:57]}  Qd8 {[%clk 0:00:26]} 25. Rb7 {[%clk 0:00:51]}  Rb8 {[%clk 0:00:19]} 26. Rxb8 {[%clk 0:00:24]}  Qxb8 {[%clk 0:00:20]} 27. Qc8+ {[%clk 0:00:24]}  Re8 {[%clk 0:00:20]} 28. Qxb8 {[%clk 0:00:20]}  Rxb8 {[%clk 0:00:21]} 29. Nd3 {[%clk 0:00:16]}  Ne6 {[%clk 0:00:19]} 30. Kf1 {[%clk 0:00:17]}  a5 {[%clk 0:00:17]} 31. Ke2 {[%clk 0:00:16]}  Kf8 {[%clk 0:00:17]} 32. Kd2 {[%clk 0:00:16]}  Ng5 {[%clk 0:00:17]} 33. f3 {[%clk 0:00:15]}  Nh7 {[%clk 0:00:15]} 34. Rc5 {[%clk 0:00:16]}  a4 {[%clk 0:00:14]} 35. Ra5 {[%clk 0:00:16]}  Rb1 {[%clk 0:00:14]} 36. Rxa4 {[%clk 0:00:08]}  Rg1 {[%clk 0:00:15]} 37. Nf4 {[%clk 0:00:07]}  g5 {[%clk 0:00:15]} 38. Ne2 {[%clk 0:00:03]}  Rxg2 {[%clk 0:00:15]} 39. Ra6 {[%clk 0:00:03]}  h5 {[%clk 0:00:14]} 40. Rh6 {[%clk 0:00:02]}  Kg7 {[%clk 0:00:11]} 41. Rxh5 {[%clk 0:00:02]}  Nf6 {[%clk 0:00:12]} 42. Rh3 {[%clk 0:00:02]}  Nd5 {[%clk 0:00:11]} 43. Rg3 {[%clk 0:00:02]}  Rxh2 {[%clk 0:00:11]} 44. Rxg5+ {[%clk 0:00:02]}  Kf6 {[%clk 0:00:08]} 45. Rxd5 {[%clk 0:00:03]}  Rh5 {[%clk 0:00:08]} 46. Rxh5 {[%clk 0:00:03]} 1-0


[Site "https://www.chess.com"]

[Event "Titled Tuesday Blitz May 4 2021"]
[White "Can, Emre"]
[Black "Rios Parra, Alejandro"]
[WhiteFideId "6302181"]
[BlackFideId "4400348"]
[WhiteElo "2503"]
[BlackElo "2188"]
[Result "1-0"]
[Round "11"]
[TimeControl "180+1"]
[Date "2021.05.04"]
[WhiteClock "0:00:34"]
[BlackClock "0:00:32"]

1. e4 {[%clk 0:03:00]}  e5 {[%clk 0:02:57]} 2. f4 {[%clk 0:02:58]}  exf4 {[%clk 0:02:56]} 3. Nf3 {[%clk 0:02:58]}  Nf6 {[%clk 0:02:54]} 4. e5 {[%clk 0:02:54]}  Nh5 {[%clk 0:02:53]} 5. Be2 {[%clk 0:02:48]}  d6 {[%clk 0:02:44]} 6. exd6 {[%clk 0:02:31]}  Bxd6 {[%clk 0:02:42]} 7. O-O {[%clk 0:02:17]}  O-O {[%clk 0:02:41]} 8. d4 {[%clk 0:02:16]}  Nc6 {[%clk 0:02:34]} 9. Nbd2 {[%clk 0:02:05]}  Re8 {[%clk 0:02:28]} 10. Nc4 {[%clk 0:02:04]}  Bg4 {[%clk 0:02:25]} 11. c3 {[%clk 0:02:01]}  Qf6 {[%clk 0:02:11]} 12. Bd3 {[%clk 0:01:52]}  Rad8 {[%clk 0:02:06]} 13. Nxd6 {[%clk 0:01:44]}  Rxd6 {[%clk 0:02:00]} 14. Bd2 {[%clk 0:01:37]}  g6 {[%clk 0:01:51]} 15. Qa4 {[%clk 0:01:24]}  a6 {[%clk 0:01:36]} 16. Rf2 {[%clk 0:01:22]}  Red8 {[%clk 0:01:32]} 17. Re1 {[%clk 0:01:17]}  g5 {[%clk 0:01:19]} 18. Ne5 {[%clk 0:00:57]}  Bf5 {[%clk 0:01:06]} 19. Bxf5 {[%clk 0:00:57]}  Qxf5 {[%clk 0:01:04]} 20. g4 {[%clk 0:00:57]}  Nxe5 {[%clk 0:00:49]} 21. gxf5 {[%clk 0:00:54]}  Nd3 {[%clk 0:00:47]} 22. Re8+ {[%clk 0:00:51]}  Kg7 {[%clk 0:00:47]} 23. Rxd8 {[%clk 0:00:51]}  Rxd8 {[%clk 0:00:46]} 24. Rg2 {[%clk 0:00:45]}  h6 {[%clk 0:00:44]} 25. Qc2 {[%clk 0:00:39]}  f3 {[%clk 0:00:37]} 26. Rg4 {[%clk 0:00:33]}  Ndf4 {[%clk 0:00:34]} 27. Bxf4 {[%clk 0:00:33]}  Nxf4 {[%clk 0:00:33]} 28. Rxf4 {[%clk 0:00:33]}  gxf4 {[%clk 0:00:32]} 29. Kf2 {[%clk 0:00:34]} 1-0


[Site "https://www.chess.com"]

[Event "Titled Tuesday Blitz May 4 2021"]
[White "Chyzy, Jakub"]
[Black "Golizadeh, Asghar"]
[WhiteFideId "21806209"]
[BlackFideId "12505269"]
[WhiteElo "2013"]
[BlackElo "2403"]
[Result "1-0"]
[Round "11"]
[TimeControl "180+1"]
[Date "2021.05.04"]
[WhiteClock "0:00:11"]
[BlackClock "0:00:01"]

1. b3 {[%clk 0:03:00]}  Nf6 {[%clk 0:02:55]} 2. Bb2 {[%clk 0:03:01]}  e6 {[%clk 0:02:56]} 3. e3 {[%clk 0:03:00]}  d5 {[%clk 0:02:56]} 4. Nf3 {[%clk 0:03:00]}  Be7 {[%clk 0:02:57]} 5. Be2 {[%clk 0:02:58]}  O-O {[%clk 0:02:57]} 6. O-O {[%clk 0:02:58]}  c5 {[%clk 0:02:57]} 7. Ne5 {[%clk 0:02:58]}  Nc6 {[%clk 0:02:57]} 8. f4 {[%clk 0:02:58]}  d4 {[%clk 0:02:53]} 9. Nxc6 {[%clk 0:02:51]}  bxc6 {[%clk 0:02:53]} 10. Bf3 {[%clk 0:02:51]}  Qd6 {[%clk 0:02:30]} 11. Na3 {[%clk 0:02:08]}  Ba6 {[%clk 0:02:28]} 12. Be2 {[%clk 0:02:08]}  d3 {[%clk 0:01:51]} 13. cxd3 {[%clk 0:02:06]}  Bxd3 {[%clk 0:01:52]} 14. Be5 {[%clk 0:01:52]}  Qd5 {[%clk 0:01:31]} 15. Rc1 {[%clk 0:01:47]}  Ne4 {[%clk 0:01:29]} 16. Bxd3 {[%clk 0:01:16]}  Qxd3 {[%clk 0:01:30]} 17. Nc4 {[%clk 0:01:16]}  Rfd8 {[%clk 0:01:14]} 18. Qg4 {[%clk 0:01:12]}  Bf8 {[%clk 0:01:05]} 19. Rcd1 {[%clk 0:00:55]}  Rd7 {[%clk 0:00:51]} 20. f5 {[%clk 0:00:55]}  exf5 {[%clk 0:00:43]} 21. Qxf5 {[%clk 0:00:56]}  g6 {[%clk 0:00:29]} 22. Qf3 {[%clk 0:00:47]}  f5 {[%clk 0:00:17]} 23. g4 {[%clk 0:00:36]}  Rf7 {[%clk 0:00:15]} 24. Qg2 {[%clk 0:00:32]}  fxg4 {[%clk 0:00:09]} 25. Rxf7 {[%clk 0:00:31]}  Kxf7 {[%clk 0:00:10]} 26. Qxg4 {[%clk 0:00:31]}  Nf6 {[%clk 0:00:02]} 27. Qf3 {[%clk 0:00:15]}  Qf5 {[%clk 0:00:01]} 28. Rf1 {[%clk 0:00:11]} 1-0


[Site "https://www.chess.com"]